[Event "XII Cracow ICC-A 2024"]
[Site "Krakow"]
[Date "2024.06.27"]
[Round "7.18"]
[White "Fus, Jakub"]
[Black "Panjer, Sidney"]
[Result "1-0"]
[ECO "D37"]
[WhiteElo "2455"]
[BlackElo "2185"]
[Annotator "TA"]
[PlyCount "69"]
[EventDate "2024.06.20"]
[EventType "swiss"]
[EventCountry "POL"]
[SourceTitle "playchess.com"]
[Source "ChessBase"]
[SourceQuality "1"]
[TimeControl "40/5400+30:1800+30"]

{[%evp 16,69,24,13,22,0,0,0,3,0,0,0,0,8,77,72,72,64,62,60,64,64,97,96,95,87,126,114,115,70,134,117,116,114,124,97,123,129,147,149,175,163,169,135,118,110,106,114,637,656,656,550,538,545,819,803]} 1. d4 {[%emt 0:05:11]} d5 {[%emt 0:00:14]} 2. c4 {[%emt 0:00:08]} e6 {[%emt 0:00:06]} 3. Nf3 {[%emt 0:00:09]} Nf6 {[%emt 0:00:15]} 4. Nc3 {[%emt 0:03:12]} Be7 {[%emt 0:00:38]} 5. g3 {[%emt 0:00:36]} O-O {[%emt 0:02:28]} 6. Bg2 {[%emt 0:00:06]} a5 {[%emt 0:01:13]} 7. O-O {[%emt 0:00:21]} c6 {[%emt 0:00:25]} 8. b3 {[%emt 0:01:29]} b6 {[%emt 0:00:44][%cal Bb7b6,Bb6b5,Bb5b4][%mdl 32]} 9. Bb2 {[%emt 0:00:22]} Ba6 {[%emt 0:00:26]} 10. Nd2 {[%emt 0:00:26]} b5 {[%emt 0:00:32]} 11. c5 {[%emt 0:01:12]} b4 {[%emt 0:00:04] The position is equal.} 12. Na4 {[%emt 0:00:33]} Nbd7 {[%emt 0:00:28]} 13. Re1 {[%emt 0:00:20]} Bb5 {[%emt 0:01:08]} 14. a3 {[%emt 0:00:51]} Bxa4 {[%emt 0:18:09]} (14... Qc7 $11 {keeps the balance.}) 15. bxa4 $16 {[%emt 0:01:12]} bxa3 {[%emt 0:07:07]} 16. Rxa3 {[%emt 0:01:39]} Qc7 {[%emt 0:00:49]} 17. Qc2 {[%emt 0:01:31]} Rfb8 {[%emt 0:05:00]} 18. Bc3 {[%emt 0:00:55]} Qb7 {[%emt 0:06:28]} 19. Rb1 {[%emt 0:01:59]} Qa6 {[%emt 0:00:08]} 20. Bf1 {[%emt 0:00:33]} e5 {[%emt 0:07:29]} 21. e3 {[%emt 0:00:40]} Qa7 {[%emt 0:02:00]} 22. Rxb8+ {[%emt 0:01:03]} Rxb8 {[%emt 0:07:27]} (22... Qxb8 $14 23. Rb3 Qc7) 23. Rb3 {[%emt 0:00:22]} exd4 {[%emt 0:04:09]} 24. exd4 {[%emt 0:00:08]} Bd8 {[%emt 0:01:00]} 25. Qd3 {[%emt 0:02:33] White is more active.} Rxb3 {[%emt 0:10:14]} 26. Nxb3 {[%emt 0:00:23] And now Qa6 would win.} Ne4 {[%emt 0:00:24] [#]} 27. Be1 $1 {[%emt 0:00:34]} Nb8 {[%emt 0:06:45] Prevents Qa6} 28. h4 {[%emt 0:01:03]} g6 {[%emt 0:02:00]} 29. f3 {[%emt 0:01:34]} Nf6 {[%emt 0:00:05]} 30. Qd2 {[%emt 0:03:03][%cal Rb3a5]} Nh5 {[%emt 0:07:23]} 31. Nxa5 {[%emt 0:03:44]} Nxg3 $2 {[%emt 0:00:41][%mdl 8192] [#] This move loses the game for Black.} 32. Bxg3 $18 {[%emt 0:00:31] White is clearly winning.} Bxa5 {[%emt 0:00:19]} 33. Bxb8 {[%emt 0:00:15]} Qxb8 {[%emt 0:00:18]} 34. Qxa5 {[%emt 0:00:06]} Qg3+ {[%emt 0:00:06]} 35. Bg2 {[%emt 0:00:04] Weighted Error Value: White=0.16 (very precise) /Black=0.42.  Loses game:     	---       	Black=1      Mistake:       	---       	Black=2      Inaccurate:     	White=1     	Black=3      OK:         	White=6     	Black=11     Best:        	White=1     	Black=2      Strong:       	White=1     	---} 1-0

[Event "XII Cracow ICC-A 2024"]
[Site "Krakow"]
[Date "2024.06.27"]
[Round "7.19"]
[White "Alexiadis, Hristos"]
[Black "Oksendal, Martin"]
[Result "1-0"]
[ECO "A31"]
[WhiteElo "2378"]
[BlackElo "2264"]
[Annotator "RC"]
[PlyCount "69"]
[EventDate "2024.06.20"]
[EventType "swiss"]
[EventCountry "POL"]
[SourceTitle "playchess.com"]
[Source "ChessBase"]
[SourceQuality "1"]
[TimeControl "40/5400+30:1800+30"]

1. Nf3 {[%emt 0:02:09]} Nf6 {[%emt 0:00:37]} 2. c4 {[%emt 0:01:14]} c5 {[%emt 0:00:40]} 3. d4 {[%emt 0:00:07]} cxd4 {[%emt 0:07:16]} 4. Nxd4 {[%emt 0:00:07]} g6 {[%emt 0:01:38]} 5. Nc3 {[%emt 0:00:06]} d5 {[%emt 0:01:29]} 6. Nc2 {[%emt 0:05:45]} Be6 {[%emt 0:04:34]} 7. Nd4 {[%emt 0:04:34]} Bc8 {[%emt 0:00:09]} 8. Nf3 {[%emt 0:14:43]} Qa5 {[%emt 0:11:21]} 9. e3 {[%emt 0:08:37]} Bg7 {[%emt 0:00:47]} 10. Bd2 {[%emt 0:03:49]} dxc4 {[%emt 0:05:08]} 11. Bxc4 {[%emt 0:00:07]} O-O {[%emt 0:02:39]} 12. O-O {[%emt 0:04:27]} Qc7 {[%emt 0:02:22]} 13. Qe2 {[%emt 0:05:10]} Nc6 {[%emt 0:02:09]} 14. h3 {[%emt 0:04:31]} a6 {[%emt 0:06:24]} 15. Rac1 {[%emt 0:00:48]} Bd7 {[%emt 0:09:09]} 16. e4 {[%emt 0:06:23]} Nh5 {[%emt 0:09:37]} 17. Nd5 {[%emt 0:07:14]} Qd8 {[%emt 0:00:48]} 18. Be3 {[%emt 0:00:04]} b5 {[%emt 0:03:20]} 19. Bb3 {[%emt 0:00:04]} Rb8 {[%emt 0:13:28]} 20. Rfd1 {[%emt 0:00:08]} Qe8 {[%emt 0:01:27]} 21. Qd2 {[%emt 0:10:07]} Rb7 {[%emt 0:02:26]} 22. Nb6 {[%emt 0:00:04]} Be6 {[%emt 0:00:52]} 23. Bxe6 {[%emt 0:03:39]} fxe6 {[%emt 0:00:01]} 24. Ng5 {[%emt 0:00:27]} Nf4 {[%emt 0:04:20]} 25. Bxf4 {[%emt 0:00:15]} Rxb6 {[%emt 0:00:36]} 26. Be3 {[%emt 0:00:06]} Rb8 {[%emt 0:03:11]} 27. Nxe6 {[%emt 0:00:07]} Rf6 {[%emt 0:00:36]} 28. Qd5 {[%emt 0:02:01]} Nb4 {[%emt 0:00:52]} 29. Qb3 {[%emt 0:00:13]} Qf7 {[%emt 0:00:44]} 30. Nxg7 {[%emt 0:00:46]} Nxa2 {[%emt 0:01:15]} 31. Qxf7+ {[%emt 0:00:05]} Kxf7 {[%emt 0:00:11]} 32. Rc7 {[%emt 0:00:16]} Kxg7 {[%emt 0:00:19]} 33. Bd4 {[%emt 0:03:34]} Kf7 {[%emt 0:00:23]} 34. Bxf6 {[%emt 0:00:14]} Kxf6 {[%emt 0:00:00]} 35. Rc6+ {[%emt 0:00:15]} 1-0

[Event "XII Cracow ICC-A 2024"]
[Site "Krakow"]
[Date "2024.06.27"]
[Round "7.20"]
[White "Nandhidhaa, P V"]
[Black "Pyrig, Roman"]
[Result "1/2-1/2"]
[ECO "B90"]
[WhiteElo "2344"]
[BlackElo "2260"]
[Annotator "RC"]
[PlyCount "160"]
[EventDate "2024.06.20"]
[EventType "swiss"]
[EventCountry "POL"]
[SourceTitle "playchess.com"]
[Source "ChessBase"]
[SourceQuality "1"]
[TimeControl "40/5400+30:1800+30"]

1. e4 {[%emt 0:04:33]} c5 {[%emt 0:00:07]} 2. Nf3 {[%emt 0:00:04]} d6 {[%emt 0:00:06]} 3. d4 {[%emt 0:00:03]} cxd4 {[%emt 0:00:03]} 4. Nxd4 {[%emt 0:00:05]} Nf6 {[%emt 0:00:04]} 5. Nc3 {[%emt 0:00:06]} a6 {[%emt 0:00:02]} 6. Bd3 {[%emt 0:00:10]} e5 {[%emt 0:11:51]} 7. Nde2 {[%emt 0:00:08]} Be7 {[%emt 0:01:59]} 8. O-O {[%emt 0:00:12]} b5 {[%emt 0:01:34]} 9. Ng3 {[%emt 0:09:18]} g6 {[%emt 0:04:20]} 10. Bh6 {[%emt 0:12:13]} Ng4 {[%emt 0:02:47]} 11. Bd2 {[%emt 0:01:06]} Be6 {[%emt 0:07:29]} 12. a4 {[%emt 0:02:25]} bxa4 {[%emt 0:05:21]} 13. Rxa4 {[%emt 0:03:32]} O-O {[%emt 0:00:16]} 14. Nf5 {[%emt 0:05:17]} Bg5 {[%emt 0:08:02]} 15. Bxg5 {[%emt 0:11:40]} Qxg5 {[%emt 0:00:05]} 16. Qxg4 {[%emt 0:03:09]} Qxg4 {[%emt 0:00:01]} 17. Nh6+ {[%emt 0:00:09]} Kg7 {[%emt 0:00:01]} 18. Nxg4 {[%emt 0:00:07]} Bxg4 {[%emt 0:00:02]} 19. Rfa1 {[%emt 0:00:25]} Be6 {[%emt 0:00:45]} 20. Bxa6 {[%emt 0:02:10]} Nxa6 {[%emt 0:00:05]} 21. Rxa6 {[%emt 0:00:10]} Rab8 {[%emt 0:00:12]} 22. Nd1 {[%emt 0:02:26]} Rfc8 {[%emt 0:01:05]} 23. Rc1 {[%emt 0:04:30]} d5 {[%emt 0:02:51]} 24. exd5 {[%emt 0:00:34]} Bxd5 {[%emt 0:00:06]} 25. Ra5 {[%emt 0:02:22]} Be4 {[%emt 0:01:56]} 26. c3 {[%emt 0:02:34]} f6 {[%emt 0:00:07]} 27. f3 {[%emt 0:00:45]} Bd3 {[%emt 0:03:46]} 28. Ra7+ {[%emt 0:01:54]} Kh6 {[%emt 0:05:51]} 29. Rd7 {[%emt 0:02:33]} Bc4 {[%emt 0:01:32]} 30. Rd2 {[%emt 0:03:32]} f5 {[%emt 0:01:24]} 31. Ne3 {[%emt 0:00:36]} Bg8 {[%emt 0:03:55]} 32. Ra1 {[%emt 0:00:21]} Rb6 {[%emt 0:02:28]} 33. Rad1 {[%emt 0:06:17]} Rcc6 {[%emt 0:02:26]} 34. Rd8 {[%emt 0:01:09]} Be6 {[%emt 0:00:02]} 35. R1d2 {[%emt 0:00:33]} Kg5 {[%emt 0:08:46]} 36. Nd5 {[%emt 0:00:58]} Bxd5 {[%emt 0:00:43]} 37. R8xd5 {[%emt 0:00:06]} Kf6 {[%emt 0:00:05]} 38. Kf1 {[%emt 0:02:13]} Ke6 {[%emt 0:01:07]} 39. Rd8 {[%emt 0:00:16]} Rb3 {[%emt 0:00:11]} 40. Re2 {[%emt 0:01:56]} Rcb6 {[%emt 0:00:39]} 41. Rdd2 {[%emt 0:31:26]} Ra6 {[%emt 0:31:37]} 42. Rc2 {[%emt 0:07:39]} g5 {[%emt 0:01:48]} 43. g4 {[%emt 0:01:10]} Rc6 {[%emt 0:02:07]} 44. Kf2 {[%emt 0:01:53]} Rc4 {[%emt 0:03:24]} 45. gxf5+ {[%emt 0:00:00]} Kxf5 {[%emt 0:00:00]} 46. Rcd2 {[%emt 0:00:00]} Rc5 {[%emt 0:00:00]} 47. Ke3 {[%emt 0:00:00]} h6 {[%emt 0:00:00]} 48. Rf2 {[%emt 0:00:00]} h5 {[%emt 0:00:00]} 49. Rg2 {[%emt 0:00:00]} Rcb5 {[%emt 0:00:00]} 50. Rde2 {[%emt 0:00:00]} Rd5 {[%emt 0:00:00]} 51. Rgf2 {[%emt 0:00:00]} Rd4 {[%emt 0:00:00]} 52. Rd2 {[%emt 0:00:00]} Rdb4 {[%emt 0:00:00]} 53. Ke2 {[%emt 0:00:00]} Rf4 {[%emt 0:00:00]} 54. Kd1 {[%emt 0:00:00]} g4 {[%emt 0:00:00]} 55. fxg4+ {[%emt 0:00:00]} hxg4 {[%emt 0:00:00]} 56. Kc2 {[%emt 0:00:00]} Rb5 {[%emt 0:00:00]} 57. Rfe2 {[%emt 0:00:00]} e4 {[%emt 0:00:00]} 58. Rd8 {[%emt 0:02:04]} Re5 {[%emt 0:00:00]} 59. b4 {[%emt 0:00:24]} Rf3 {[%emt 0:00:00]} 60. c4 {[%emt 0:00:21]} Ra3 {[%emt 0:00:00]} 61. Kb2 {[%emt 0:00:09]} Rf3 {[%emt 0:00:00]} 62. c5 {[%emt 0:01:30]} Re6 {[%emt 0:02:20]} 63. Rd5+ {[%emt 0:01:28]} Kf6 {[%emt 0:02:15]} 64. b5 {[%emt 0:00:44]} e3 {[%emt 0:00:11]} 65. Kc3 {[%emt 0:00:44]} Rf2 {[%emt 0:00:23]} 66. Kd3 {[%emt 0:01:32]} Rf1 {[%emt 0:00:01]} 67. c6 {[%emt 0:03:35]} Re8 {[%emt 0:12:48]} 68. Kd4 {[%emt 0:02:06]} Rf2 {[%emt 0:00:20]} 69. Kd3 {[%emt 0:02:20]} Rf1 {[%emt 0:00:10]} 70. b6 {[%emt 0:01:51]} Rd1+ {[%emt 0:03:33]} 71. Kc4 {[%emt 0:00:01]} Re4+ {[%emt 0:00:01]} 72. Kc5 {[%emt 0:00:01]} Rc1+ {[%emt 0:00:03]} 73. Kb5 {[%emt 0:00:02]} Rb1+ {[%emt 0:00:13]} 74. Ka6 {[%emt 0:01:45]} Reb4 {[%emt 0:02:12]} 75. b7 {[%emt 0:00:42]} Ke6 {[%emt 0:00:02]} 76. Ra5 {[%emt 0:01:05]} Kd6 {[%emt 0:00:01]} 77. Rxe3 {[%emt 0:01:02]} Kxc6 {[%emt 0:00:05]} 78. Re6+ {[%emt 0:00:37]} Kd7 {[%emt 0:00:42]} 79. Rh6 {[%emt 0:00:08]} Rxb7 {[%emt 0:00:24]} 80. Rd5+ {[%emt 0:00:07]} Kc7 {[%emt 0:00:29]} 1/2-1/2

[Event "XII Cracow ICC-A 2024"]
[Site "Krakow"]
[Date "2024.06.27"]
[Round "7.21"]
[White "Berin, Artem"]
[Black "Suder, Jakub"]
[Result "1/2-1/2"]
[ECO "D53"]
[WhiteElo "2234"]
[BlackElo "2328"]
[Annotator "RC"]
[PlyCount "95"]
[EventDate "2024.06.20"]
[EventType "swiss"]
[EventCountry "POL"]
[SourceTitle "playchess.com"]
[Source "ChessBase"]
[SourceQuality "1"]
[TimeControl "40/5400+30:1800+30"]

1. d4 {[%emt 0:00:03]} d5 {[%emt 0:16:03]} 2. c4 {[%emt 0:00:07]} e6 {[%emt 0:00:03]} 3. Nc3 {[%emt 0:00:07]} Nf6 {[%emt 0:00:03]} 4. Bg5 {[%emt 0:00:23]} Be7 {[%emt 0:00:14]} 5. Nf3 {[%emt 0:00:35]} c6 {[%emt 0:00:55]} 6. e3 {[%emt 0:00:25]} Nbd7 {[%emt 0:00:08]} 7. Qc2 {[%emt 0:00:16]} O-O {[%emt 0:00:36]} 8. a3 {[%emt 0:00:29]} Re8 {[%emt 0:04:54]} 9. Rd1 {[%emt 0:03:19]} Qa5 {[%emt 0:03:10]} 10. Nd2 {[%emt 0:03:55]} dxc4 {[%emt 0:06:10]} 11. Bxf6 {[%emt 0:00:15]} Nxf6 {[%emt 0:00:23]} 12. Nxc4 {[%emt 0:00:08]} Qc7 {[%emt 0:00:40]} 13. Be2 {[%emt 0:07:27]} b6 {[%emt 0:03:25]} 14. O-O {[%emt 0:03:01]} Bb7 {[%emt 0:01:12]} 15. b4 {[%emt 0:05:02]} c5 {[%emt 0:08:28]} 16. dxc5 {[%emt 0:00:44]} bxc5 {[%emt 0:00:43]} 17. b5 {[%emt 0:01:52]} Red8 {[%emt 0:04:49]} 18. Rc1 {[%emt 0:09:29]} Nd5 {[%emt 0:03:11]} 19. Ne4 {[%emt 0:06:58]} f5 {[%emt 0:01:25]} 20. Ned2 {[%emt 0:02:02]} Rf8 {[%emt 0:05:38]} 21. Bf3 {[%emt 0:06:35]} g5 {[%emt 0:07:58]} 22. g3 {[%emt 0:11:52]} f4 {[%emt 0:04:35]} 23. exf4 {[%emt 0:02:38]} gxf4 {[%emt 0:00:41]} 24. Rfe1 {[%emt 0:03:45]} fxg3 {[%emt 0:00:41]} 25. hxg3 {[%emt 0:00:23]} Rf6 {[%emt 0:05:26]} 26. Bg2 {[%emt 0:03:37]} Raf8 {[%emt 0:01:46]} 27. Ne4 {[%emt 0:00:43]} Rg6 {[%emt 0:00:51]} 28. Ne3 {[%emt 0:06:11]} Nxe3 {[%emt 0:07:53]} 29. Rxe3 {[%emt 0:00:19]} Rf5 {[%emt 0:00:49]} 30. Qe2 {[%emt 0:06:20]} h5 {[%emt 0:01:47]} 31. Bh3 {[%emt 0:02:45]} Re5 {[%emt 0:01:24]} 32. Nd2 {[%emt 0:03:04]} Rxe3 {[%emt 0:00:43]} 33. Qxe3 {[%emt 0:00:04]} h4 {[%emt 0:03:55]} 34. Bxe6+ {[%emt 0:04:02]} Kf8 {[%emt 0:00:10]} 35. Bf5 {[%emt 0:00:33]} Rg7 {[%emt 0:00:34]} 36. Nf1 {[%emt 0:01:35]} hxg3 {[%emt 0:00:40]} 37. Nxg3 {[%emt 0:03:28]} c4 {[%emt 0:01:48]} 38. Re1 {[%emt 0:01:01]} c3 {[%emt 0:01:13]} 39. Qh6 {[%emt 0:01:40]} Bd5 {[%emt 0:03:15]} 40. Be6 {[%emt 0:01:43]} Bxe6 {[%emt 0:00:22]} 41. Rxe6 {[%emt 0:02:42]} Kg8 {[%emt 0:07:32]} 42. Rc6 {[%emt 0:04:56]} Qe5 {[%emt 0:04:47]} 43. Rc8+ {[%emt 0:01:20]} Kf7 {[%emt 0:01:37]} 44. Qc6 {[%emt 0:01:12]} Rxg3+ {[%emt 0:06:06]} 45. fxg3 {[%emt 0:00:19]} Qe1+ {[%emt 0:01:30]} 46. Kh2 {[%emt 0:02:38]} Qe2+ {[%emt 0:00:51]} 47. Kh3 {[%emt 0:00:50]} Qh5+ {[%emt 0:00:10]} 48. Kg2 {[%emt 0:00:15]} 1/2-1/2

[Event "XII Cracow ICC-A 2024"]
[Site "Krakow"]
[Date "2024.06.27"]
[Round "7.22"]
[White "Damen, Jip"]
[Black "Czernek, Tymon"]
[Result "0-1"]
[ECO "B94"]
[WhiteElo "2259"]
[BlackElo "2316"]
[Annotator "RC"]
[PlyCount "48"]
[EventDate "2024.06.20"]
[EventType "swiss"]
[EventCountry "POL"]
[SourceTitle "playchess.com"]
[Source "ChessBase"]
[SourceQuality "1"]
[TimeControl "40/5400+30:1800+30"]

1. e4 {[%emt 0:00:03]} c5 {[%emt 0:00:03]} 2. Nf3 {[%emt 0:00:03]} d6 {[%emt 0:00:03]} 3. d4 {[%emt 0:00:04]} cxd4 {[%emt 0:00:02]} 4. Nxd4 {[%emt 0:00:05]} Nf6 {[%emt 0:00:02]} 5. Nc3 {[%emt 0:00:07]} a6 {[%emt 0:00:03]} 6. Bg5 {[%emt 0:00:05]} Nbd7 {[%emt 0:00:27]} 7. Qe2 {[%emt 0:00:17]} h6 {[%emt 0:02:53]} 8. Bh4 {[%emt 0:00:05]} e5 {[%emt 0:01:11]} 9. Nf5 {[%emt 0:04:02]} g6 {[%emt 0:01:04]} 10. Ne3 {[%emt 0:00:10]} Be7 {[%emt 0:01:43]} 11. O-O-O {[%emt 0:00:33]} O-O {[%emt 0:00:42]} 12. Nc4 {[%emt 0:07:31]} Qc7 {[%emt 0:00:54]} 13. Qd2 {[%emt 0:01:58]} b5 {[%emt 0:03:05]} 14. Nxd6 {[%emt 0:09:31]} b4 {[%emt 0:00:04]} 15. Ne2 {[%emt 0:23:27]} Nc5 {[%emt 0:01:32]} 16. f3 {[%emt 0:13:13]} Rd8 {[%emt 0:01:48]} 17. Bg3 {[%emt 0:17:38]} b3 {[%emt 0:04:40]} 18. Kb1 {[%emt 0:05:20]} Rxd6 {[%emt 0:00:27]} 19. Nd4 {[%emt 0:01:21]} Ncxe4 {[%emt 0:01:08]} 20. fxe4 {[%emt 0:00:58]} Rxd4 {[%emt 0:00:08]} 21. Bd3 {[%emt 0:01:26]} Nxe4 {[%emt 0:01:43]} 22. Qxh6 {[%emt 0:01:12]} Bg5 {[%emt 0:00:54]} 23. Bxe4 {[%emt 0:00:21]} Rxd1+ {[%emt 0:00:06]} 24. Rxd1 {[%emt 0:00:05]} bxc2+ {[%emt 0:00:02]} 0-1

[Event "XII Cracow ICC-A 2024"]
[Site "Krakow"]
[Date "2024.06.27"]
[Round "7.23"]
[White "Kutowski, Marcel"]
[Black "Lach, Aleksandra"]
[Result "1/2-1/2"]
[ECO "B38"]
[WhiteElo "2230"]
[BlackElo "2300"]
[Annotator "RC"]
[PlyCount "134"]
[EventDate "2024.06.20"]
[EventType "swiss"]
[EventCountry "POL"]
[SourceTitle "playchess.com"]
[Source "ChessBase"]
[SourceQuality "1"]
[TimeControl "40/5400+30:1800+30"]

1. e4 {[%emt 0:00:03]} c5 {[%emt 0:03:19]} 2. Nf3 {[%emt 0:00:03]} g6 {[%emt 0:00:50]} 3. d4 {[%emt 0:01:35]} cxd4 {[%emt 0:02:51]} 4. Nxd4 {[%emt 0:01:30]} Nc6 {[%emt 0:00:38]} 5. c4 {[%emt 0:00:20]} Bg7 {[%emt 0:00:31]} 6. Be3 {[%emt 0:00:10]} Nf6 {[%emt 0:00:42]} 7. Nc3 {[%emt 0:00:10]} O-O {[%emt 0:00:16]} 8. Be2 {[%emt 0:01:28]} b6 {[%emt 0:00:56]} 9. O-O {[%emt 0:00:55]} Bb7 {[%emt 0:00:10]} 10. f3 {[%emt 0:02:16]} Nxd4 {[%emt 0:00:58]} 11. Bxd4 {[%emt 0:00:49]} Qc7 {[%emt 0:00:10]} 12. Qd2 {[%emt 0:04:21]} Nh5 {[%emt 0:03:57]} 13. Be3 {[%emt 0:06:28]} Be5 {[%emt 0:25:38]} 14. f4 {[%emt 0:05:08]} Bxc3 {[%emt 0:10:12]} 15. Qxc3 {[%emt 0:01:19]} Nf6 {[%emt 0:03:34]} 16. e5 {[%emt 0:04:02]} Ne4 {[%emt 0:03:53]} 17. Qd4 {[%emt 0:16:05]} d6 {[%emt 0:08:03]} 18. Bf3 {[%emt 0:05:12]} dxe5 {[%emt 0:03:35]} 19. Qxe5 {[%emt 0:01:20]} Qxe5 {[%emt 0:03:59]} 20. fxe5 {[%emt 0:00:10]} f5 {[%emt 0:00:10]} 21. exf6 {[%emt 0:05:40]} exf6 {[%emt 0:00:17]} 22. Rad1 {[%emt 0:01:53]} Rf7 {[%emt 0:04:29]} 23. Rd4 {[%emt 0:12:02]} Nc5 {[%emt 0:08:50]} 24. Bxb7 {[%emt 0:06:23]} Nxb7 {[%emt 0:00:08]} 25. Rfd1 {[%emt 0:01:08]} Re7 {[%emt 0:01:44]} 26. Bf2 {[%emt 0:01:02]} Na5 {[%emt 0:04:31]} 27. c5 {[%emt 0:03:56]} bxc5 {[%emt 0:02:31]} 28. Rd8+ {[%emt 0:00:10]} Rxd8 {[%emt 0:00:55]} 29. Rxd8+ {[%emt 0:00:06]} Kf7 {[%emt 0:01:19]} 30. Bxc5 {[%emt 0:00:45]} Re1+ {[%emt 0:01:07]} 31. Kf2 {[%emt 0:00:15]} Rb1 {[%emt 0:00:10]} 32. Rf8+ {[%emt 0:04:13]} Kg7 {[%emt 0:02:45]} 33. Rb8 {[%emt 0:00:07]} Nc6 {[%emt 0:01:30]} 34. Rb7+ {[%emt 0:00:07]} Kg8 {[%emt 0:00:27]} 35. Be3 {[%emt 0:01:21]} a5 {[%emt 0:01:02]} 36. Bd2 {[%emt 0:03:24]} Nb4 {[%emt 0:00:47]} 37. Bc3 {[%emt 0:00:32]} Nxa2 {[%emt 0:00:43]} 38. Bxf6 {[%emt 0:02:14]} a4 {[%emt 0:00:57]} 39. Rg7+ {[%emt 0:04:34]} Kf8 {[%emt 0:00:01]} 40. Rxh7 {[%emt 0:02:22]} Nb4 {[%emt 0:01:09]} 41. Ra7 {[%emt 0:30:24]} Nd3+ {[%emt 0:05:37]} 42. Kg3 {[%emt 0:00:00]} Rf1 {[%emt 0:04:56]} 43. Bg7+ {[%emt 0:00:00]} Kg8 {[%emt 0:03:44]} 44. Bd4 {[%emt 0:00:00]} Nf4 {[%emt 0:04:52]} 45. Rxa4 {[%emt 0:00:00]} Ne2+ {[%emt 0:00:01]} 46. Kh3 {[%emt 0:00:00]} Rf4 {[%emt 0:03:40]} 47. Ra8+ {[%emt 0:00:00]} Kf7 {[%emt 0:00:05]} 48. Bc5 {[%emt 0:00:00]} Rc4 {[%emt 0:00:35]} 49. b4 {[%emt 0:00:00]} Nf4+ {[%emt 0:00:54]} 50. Kg3 {[%emt 0:00:00]} Nd3 {[%emt 0:02:04]} 51. Rf8+ {[%emt 0:00:00]} Ke6 {[%emt 0:00:41]} 52. Re8+ {[%emt 0:00:21]} Kf7 {[%emt 0:00:29]} 53. Re7+ {[%emt 0:04:35]} Kg8 {[%emt 0:00:01]} 54. Re8+ {[%emt 0:02:45]} Kf7 {[%emt 0:00:17]} 55. Rf8+ {[%emt 0:00:09]} Ke6 {[%emt 0:00:07]} 56. Rf3 {[%emt 0:00:32]} Nxb4 {[%emt 0:06:27]} 57. Bxb4 {[%emt 0:00:52]} Rxb4 {[%emt 0:00:01]} 58. Kh3 {[%emt 0:00:15]} Rb2 {[%emt 0:01:23]} 59. g4 {[%emt 0:00:15]} g5 {[%emt 0:00:52]} 60. Kg3 {[%emt 0:00:58]} Rb1 {[%emt 0:00:44]} 61. Rf5 {[%emt 0:01:58]} Rb3+ {[%emt 0:00:26]} 62. Rf3 {[%emt 0:00:13]} Rb1 {[%emt 0:00:07]} 63. Kg2 {[%emt 0:00:49]} Rb4 {[%emt 0:01:10]} 64. h3 {[%emt 0:00:23]} Rb2+ {[%emt 0:00:20]} 65. Kg3 {[%emt 0:00:12]} Rb1 {[%emt 0:00:12]} 66. Rf2 {[%emt 0:01:22]} Rb3+ {[%emt 0:00:22]} 67. Rf3 {[%emt 0:00:30]} Ke5 1/2-1/2

[Event "XII Cracow ICC-A 2024"]
[Site "Krakow"]
[Date "2024.06.27"]
[Round "7.24"]
[White "Backiel, Hubert"]
[Black "Eliseev, Sergey"]
[Result "1-0"]
[ECO "B90"]
[WhiteElo "2200"]
[BlackElo "2296"]
[Annotator "RC"]
[PlyCount "63"]
[EventDate "2024.06.20"]
[EventType "swiss"]
[EventCountry "POL"]
[SourceTitle "playchess.com"]
[Source "ChessBase"]
[SourceQuality "1"]
[TimeControl "40/5400+30:1800+30"]

1. e4 c5 2. Nf3 d6 3. d4 cxd4 4. Nxd4 Nf6 5. Nc3 a6 6. Bc4 e6 7. Be3 b5 8. Bb3 {[%emt 0:00:58]} Bd7 {[%emt 0:13:20]} 9. a3 {[%emt 0:02:58]} Be7 {[%emt 0:03:59]} 10. g4 {[%emt 0:01:06]} Qa5 {[%emt 0:06:36]} 11. f3 {[%emt 0:08:18]} h6 {[%emt 0:02:48]} 12. h4 {[%emt 0:15:01]} Nc6 {[%emt 0:09:29]} 13. Qd2 {[%emt 0:07:44]} b4 {[%emt 0:24:54]} 14. Nxc6 {[%emt 0:03:16]} Bxc6 {[%emt 0:02:17]} 15. Na2 {[%emt 0:23:28]} d5 {[%emt 0:00:04]} 16. e5 {[%emt 0:11:29]} d4 {[%emt 0:10:19]} 17. Bxd4 {[%emt 0:02:32]} Nxg4 {[%emt 0:01:47]} 18. axb4 {[%emt 0:02:47]} Qb5 {[%emt 0:08:42]} 19. Qf4 {[%emt 0:07:02]} h5 {[%emt 0:04:35]} 20. O-O-O {[%emt 0:04:00]} Nh6 {[%emt 0:00:45]} 21. Bc5 {[%emt 0:06:48]} Bxc5 {[%emt 0:00:49]} 22. bxc5 {[%emt 0:00:01]} Qxc5 {[%emt 0:02:16]} 23. Nb4 {[%emt 0:01:44]} Bb5 {[%emt 0:01:39]} 24. Nd3 {[%emt 0:00:38]} Qe7 {[%emt 0:00:11]} 25. Nf2 {[%emt 0:00:21]} Nf5 {[%emt 0:05:39]} 26. Ne4 {[%emt 0:00:04]} O-O {[%emt 0:00:46]} 27. Rdg1 {[%emt 0:00:06]} Kh8 {[%emt 0:01:28]} 28. Rg5 {[%emt 0:00:15]} Qa7 {[%emt 0:00:55]} 29. Rxh5+ {[%emt 0:02:44]} Kg8 {[%emt 0:00:01]} 30. Nf6+ {[%emt 0:00:08]} gxf6 {[%emt 0:00:03]} 31. Qg4+ {[%emt 0:00:04]} Ng7 {[%emt 0:00:05]} 32. exf6 {[%emt 0:00:04]} 1-0